[Event "Skilling Open CCT 2021"]
[Site "Online"]
[Date "2020.11.19"]
[Round "15.1"]
[White "Nepomniachtchi, Ian"]
[Black "Vachier-Lagrave, Maxime"]
[Result "1/2-1/2"]
[ECO "B51"]
[WhiteElo "2778"]
[BlackElo "2860"]
[Annotator "RC"]
[PlyCount "153"]
[EventDate "2020.11.20"]
[EventType "tourn"]
[EventCountry "NET"]
[Tiebreak "Koya+Number of black wins+Number of wins"]
[SourceTitle "playchess.com"]
[Source "ChessBase"]
[SourceQuality "1"]
[TimeControl "900+10"]

1. e4 {[%emt 0:00:00]} c5 {[%emt 0:00:00]} 2. Nf3 {[%emt 0:00:00]} d6 {[%emt 0:
00:00]} 3. Bb5+ {[%emt 0:00:00]} Nd7 {[%emt 0:00:00]} 4. d4 {[%emt 0:00:00]}
cxd4 {[%emt 0:00:00]} 5. Qxd4 {[%emt 0:00:00]} a6 {[%emt 0:00:00]} 6. Bxd7+ {
[%emt 0:00:00]} Bxd7 {[%emt 0:00:00]} 7. c4 {[%emt 0:00:00]} e6 {[%emt 0:00:09]
} 8. Nc3 {[%emt 0:00:10]} Bc6 {[%emt 0:00:08]} 9. O-O {[%emt 0:00:31]} Nf6 {
[%emt 0:00:03]} 10. b3 {[%emt 0:00:42]} Be7 {[%emt 0:00:05]} 11. Ba3 {[%emt 0:
00:26]} O-O {[%emt 0:00:15]} 12. Rac1 {[%emt 0:00:56]} Qa5 {[%emt 0:00:45]} 13.
Bxd6 {[%emt 0:00:13]} Bxd6 {[%emt 0:00:05]} 14. Qxd6 {[%emt 0:00:00]} Nxe4 {
[%emt 0:00:04]} 15. Qe5 {[%emt 0:00:13]} Qxe5 {[%emt 0:00:03]} 16. Nxe5 {
[%emt 0:00:00]} Nxc3 {[%emt 0:00:14]} 17. Rxc3 {[%emt 0:00:04]} Rfd8 {[%emt 0:
00:03]} 18. Nxc6 {[%emt 0:00:27]} bxc6 {[%emt 0:00:00]} 19. b4 {[%emt 0:01:10]}
Rd2 {[%emt 0:00:23]} 20. Ra3 {[%emt 0:00:08]} Rb2 {[%emt 0:00:21]} 21. Ra4 {
[%emt 0:00:05]} g5 {[%emt 0:00:19]} 22. g3 {[%emt 0:00:19]} Kg7 {[%emt 0:00:22]
} 23. Rd1 {[%emt 0:00:06]} h5 {[%emt 0:00:44]} 24. a3 {[%emt 0:00:17]} h4 {
[%emt 0:00:08]} 25. gxh4 {[%emt 0:00:39]} gxh4 {[%emt 0:00:00]} 26. h3 {
[%emt 0:00:01]} Rb3 {[%emt 0:00:12]} 27. Kh2 {[%emt 0:00:16]} Rf3 {[%emt 0:00:
45]} 28. Kg2 {[%emt 0:00:06]} Rf4 {[%emt 0:00:01]} 29. c5 {[%emt 0:02:21]} Kf6
{[%emt 0:00:03]} 30. Kf1 {[%emt 0:00:11]} Rf3 {[%emt 0:01:11]} 31. Rd4 {
[%emt 0:00:21]} Rxh3 {[%emt 0:00:05]} 32. Kg2 {[%emt 0:00:03]} Rb3 {[%emt 0:00:
27]} 33. Rxh4 {[%emt 0:00:03]} Rd3 {[%emt 0:00:23]} 34. Ra5 {[%emt 0:01:17]}
Kg5 {[%emt 0:00:15]} 35. Rh7 {[%emt 0:00:17]} Kg6 {[%emt 0:00:05]} 36. Rh3 {
[%emt 0:00:29]} Rxh3 {[%emt 0:00:31]} 37. Kxh3 {[%emt 0:00:03]} Kf5 {[%emt 0:
00:00]} 38. a4 {[%emt 0:00:03]} Ke4 {[%emt 0:00:09]} 39. b5 {[%emt 0:00:15]}
Rh8+ {[%emt 0:00:18]} 40. Kg2 {[%emt 0:00:06]} Rg8+ {[%emt 0:00:11]} 41. Kf1 {
[%emt 0:00:04]} axb5 {[%emt 0:00:02]} 42. axb5 {[%emt 0:00:03]} cxb5 {[%emt 0:
00:01]} 43. Rxb5 {[%emt 0:00:03]} Kd5 {[%emt 0:00:02]} 44. Rb7 {[%emt 0:00:13]}
f5 {[%emt 0:00:02]} 45. Ke2 {[%emt 0:00:31]} Kxc5 {[%emt 0:00:15]} 46. f4 {
[%emt 0:00:10]} Rg3 {[%emt 0:00:19]} 47. Rd7 {[%emt 0:00:15]} Ra3 {[%emt 0:00:
03]} 48. Rd8 {[%emt 0:00:03]} Ra4 {[%emt 0:00:06]} 49. Ke3 {[%emt 0:00:03]}
Re4+ {[%emt 0:00:01]} 50. Kf3 {[%emt 0:00:01]} Rd4 {[%emt 0:00:02]} 51. Rc8+ {
[%emt 0:00:03]} Kd5 {[%emt 0:00:01]} 52. Rd8+ {[%emt 0:00:11]} Kc4 {[%emt 0:00:
01]} 53. Rc8+ {[%emt 0:00:05]} Kd3 {[%emt 0:00:03]} 54. Rc6 {[%emt 0:00:03]}
Re4 {[%emt 0:00:02]} 55. Rd6+ {[%emt 0:00:01]} Kc4 {[%emt 0:00:02]} 56. Ra6 {
[%emt 0:00:03]} Kc5 {[%emt 0:00:03]} 57. Ra5+ {[%emt 0:00:05]} Kd6 {[%emt 0:00:
04]} 58. Ra6+ {[%emt 0:00:03]} Ke7 {[%emt 0:00:01]} 59. Ra7+ {[%emt 0:00:02]}
Kf6 {[%emt 0:00:01]} 60. Ra6 {[%emt 0:00:02]} Rb4 {[%emt 0:00:05]} 61. Rc6 {
[%emt 0:00:06]} Rb3+ {[%emt 0:00:02]} 62. Kf2 {[%emt 0:00:01]} Ke7 {[%emt 0:00:
01]} 63. Ra6 {[%emt 0:00:02]} Kd7 {[%emt 0:00:01]} 64. Ke2 {[%emt 0:00:02]} Rc3
{[%emt 0:00:00]} 65. Kf2 {[%emt 0:00:02]} Rc6 {[%emt 0:00:02]} 66. Ra5 {
[%emt 0:00:03]} Kd6 {[%emt 0:00:01]} 67. Kf3 {[%emt 0:00:04]} Rc3+ {[%emt 0:00:
04]} 68. Kf2 {[%emt 0:00:02]} Rc5 {[%emt 0:00:01]} 69. Ra3 {[%emt 0:00:19]} Kd5
{[%emt 0:00:05]} 70. Ke3 {[%emt 0:00:02]} Rb5 {[%emt 0:00:10]} 71. Rd3+ {
[%emt 0:00:03]} Kc4 {[%emt 0:00:01]} 72. Rd6 {[%emt 0:00:05]} Rb3+ {[%emt 0:00:
04]} 73. Kf2 {[%emt 0:00:02]} Rb2+ {[%emt 0:00:04]} 74. Kf3 {[%emt 0:00:01]}
Rb3+ {[%emt 0:00:00]} 75. Kf2 {[%emt 0:00:01]} Rb2+ {[%emt 0:00:01]} 76. Kf3 {
[%emt 0:00:00]} Rb3+ {[%emt 0:00:00]} 77. Kf2 {[%emt 0:00:01]} 1/2-1/2

[Event "Skilling Open CCT 2021"]
[Site "Online"]
[Date "2020.11.19"]
[Round "15.2"]
[White "Carlsen, Magnus"]
[Black "Svidler, Peter"]
[Result "1/2-1/2"]
[ECO "B53"]
[WhiteElo "2881"]
[BlackElo "2742"]
[Annotator "RC"]
[PlyCount "65"]
[EventDate "2020.11.20"]
[EventType "tourn"]
[EventCountry "NET"]
[Tiebreak "Koya+Number of black wins+Number of wins"]
[SourceTitle "playchess.com"]
[Source "ChessBase"]
[SourceQuality "1"]
[TimeControl "900+10"]

1. e4 {[%emt 0:00:00]} c5 {[%emt 0:00:00]} 2. Nf3 {[%emt 0:00:00]} d6 {[%emt 0:
00:00]} 3. d4 {[%emt 0:00:00]} cxd4 {[%emt 0:00:00]} 4. Qxd4 {[%emt 0:00:00]}
Nc6 {[%emt 0:00:00]} 5. Qe3 {[%emt 0:00:00]} g6 {[%emt 0:00:00]} 6. Be2 {
[%emt 0:01:01]} Bg7 {[%emt 0:00:23]} 7. O-O {[%emt 0:00:02]} Nf6 {[%emt 0:00:
03]} 8. h3 {[%emt 0:00:04]} O-O {[%emt 0:00:37]} 9. Rd1 {[%emt 0:00:04]} Be6 {
[%emt 0:01:48]} 10. Nc3 {[%emt 0:00:04]} Qc8 {[%emt 0:00:32]} 11. a3 {[%emt 0:
00:10]} Na5 {[%emt 0:00:47]} 12. Nd4 {[%emt 0:00:05]} Bc4 {[%emt 0:00:25]} 13.
Bf3 {[%emt 0:00:36]} Nc6 {[%emt 0:00:51]} 14. Nxc6 {[%emt 0:01:10]} bxc6 {
[%emt 0:00:04]} 15. e5 {[%emt 0:00:19]} dxe5 {[%emt 0:00:28]} 16. Qc5 {[%emt 0:
00:09]} Bd5 {[%emt 0:00:06]} 17. Bxd5 {[%emt 0:02:19]} cxd5 {[%emt 0:00:10]}
18. Qxc8 {[%emt 0:00:01]} Rfxc8 {[%emt 0:00:17]} 19. Nxd5 {[%emt 0:00:00]} Nxd5
{[%emt 0:00:04]} 20. Rxd5 {[%emt 0:00:00]} Rxc2 {[%emt 0:00:01]} 21. b4 {
[%emt 0:00:16]} f5 {[%emt 0:01:50]} 22. Be3 {[%emt 0:00:08]} f4 {[%emt 0:00:08]
} 23. Bc5 {[%emt 0:00:03]} Bf6 {[%emt 0:00:05]} 24. Rd7 {[%emt 0:00:26]} a5 {
[%emt 0:00:07]} 25. Bxe7 {[%emt 0:00:35]} Bxe7 {[%emt 0:00:03]} 26. Rxe7 {
[%emt 0:00:00]} axb4 {[%emt 0:00:01]} 27. Rd1 {[%emt 0:00:01]} bxa3 {[%emt 0:
00:21]} 28. Rdd7 {[%emt 0:00:02]} a2 {[%emt 0:00:02]} 29. Rg7+ {[%emt 0:00:03]}
Kf8 {[%emt 0:00:06]} 30. Rgf7+ {[%emt 0:00:01]} Kg8 {[%emt 0:00:01]} 31. Rg7+ {
[%emt 0:00:01]} Kf8 {[%emt 0:00:01]} 32. Rgf7+ {[%emt 0:00:00]} Kg8 {[%emt 0:
00:00]} 33. Rg7+ {[%emt 0:00:01]} 1/2-1/2

[Event "Skilling Open CCT 2021"]
[Site "Online"]
[Date "2020.11.19"]
[Round "15.3"]
[White "Radjabov, Teimour"]
[Black "So, Wesley"]
[Result "1/2-1/2"]
[ECO "D93"]
[WhiteElo "2758"]
[BlackElo "2741"]
[Annotator "RC"]
[PlyCount "79"]
[EventDate "2020.11.20"]
[EventType "tourn"]
[EventCountry "NET"]
[Tiebreak "Koya+Number of black wins+Number of wins"]
[SourceTitle "playchess.com"]
[Source "ChessBase"]
[SourceQuality "1"]
[TimeControl "900+10"]

1. d4 {[%emt 0:00:00]} Nf6 {[%emt 0:00:00]} 2. c4 {[%emt 0:00:00]} g6 {[%emt 0:
00:00]} 3. Nc3 {[%emt 0:00:00]} d5 {[%emt 0:00:00]} 4. Nf3 {[%emt 0:00:00]} Bg7
{[%emt 0:00:00]} 5. Bf4 {[%emt 0:00:00]} O-O {[%emt 0:00:00]} 6. e3 {[%emt 0:
00:00]} c5 {[%emt 0:00:00]} 7. dxc5 {[%emt 0:00:01]} Qa5 {[%emt 0:00:00]} 8.
Rc1 {[%emt 0:00:02]} dxc4 {[%emt 0:00:01]} 9. Bxc4 {[%emt 0:00:01]} Qxc5 {
[%emt 0:00:01]} 10. Qb3 {[%emt 0:00:01]} Nc6 {[%emt 0:00:33]} 11. O-O {[%emt 0:
00:01]} Na5 {[%emt 0:00:42]} 12. Qb5 {[%emt 0:00:02]} Qxc4 {[%emt 0:00:03]} 13.
Qxa5 {[%emt 0:00:01]} b6 {[%emt 0:00:43]} 14. Qa3 {[%emt 0:00:04]} Re8 {
[%emt 0:00:18]} 15. Rfd1 {[%emt 0:00:21]} Qa6 {[%emt 0:01:46]} 16. Qb4 {
[%emt 0:00:18]} Bb7 {[%emt 0:01:01]} 17. Ne5 {[%emt 0:00:13]} Rac8 {[%emt 0:00:
38]} 18. h3 {[%emt 0:00:54]} Rc5 {[%emt 0:00:37]} 19. a4 {[%emt 0:01:18]} e6 {
[%emt 0:00:41]} 20. Nd3 {[%emt 0:00:52]} Rc4 {[%emt 0:00:03]} 21. Qb5 {[%emt 0:
00:14]} Qxb5 {[%emt 0:00:06]} 22. Nxb5 {[%emt 0:00:13]} Rxc1 {[%emt 0:01:24]}
23. Rxc1 {[%emt 0:00:10]} Rd8 {[%emt 0:00:06]} 24. Rc7 {[%emt 0:01:00]} Ba6 {
[%emt 0:01:35]} 25. Nb4 {[%emt 0:00:46]} Bxb5 {[%emt 0:00:06]} 26. axb5 {
[%emt 0:00:01]} Nh5 {[%emt 0:02:04]} 27. Nc6 {[%emt 0:01:59]} Rd1+ {[%emt 0:00:
02]} 28. Kh2 {[%emt 0:00:02]} Nxf4 {[%emt 0:00:01]} 29. Rc8+ {[%emt 0:01:37]}
Bf8 {[%emt 0:00:07]} 30. exf4 {[%emt 0:00:02]} Kg7 {[%emt 0:01:05]} 31. Ra8 {
[%emt 0:02:23]} Bd6 {[%emt 0:00:28]} 32. g3 {[%emt 0:00:55]} Rd2 {[%emt 0:00:
16]} 33. Rxa7 {[%emt 0:01:46]} Rxf2+ {[%emt 0:00:06]} 34. Kg1 {[%emt 0:00:06]}
Bc5 {[%emt 0:00:25]} 35. b4 {[%emt 0:00:59]} Be3 {[%emt 0:00:03]} 36. Ra3 {
[%emt 0:00:14]} Rf3+ {[%emt 0:00:10]} 37. Kg2 {[%emt 0:00:05]} Rf2+ {[%emt 0:
00:02]} 38. Kg1 {[%emt 0:00:01]} Rf3+ {[%emt 0:00:01]} 39. Kg2 {[%emt 0:00:01]}
Rf2+ {[%emt 0:00:01]} 40. Kg1 {[%emt 0:00:01]} 1/2-1/2

[Event "Skilling Open CCT 2021"]
[Site "Online"]
[Date "2020.11.19"]
[Round "15.4"]
[White "Anton Guijarro, David"]
[Black "Vidit, Santosh Gujrathi"]
[Result "0-1"]
[ECO "E51"]
[WhiteElo "2667"]
[BlackElo "2636"]
[Annotator "RC"]
[PlyCount "124"]
[EventDate "2020.11.20"]
[EventType "tourn"]
[EventCountry "NET"]
[Tiebreak "Koya+Number of black wins+Number of wins"]
[SourceTitle "playchess.com"]
[Source "ChessBase"]
[SourceQuality "1"]
[TimeControl "900+10"]

1. d4 {[%emt 0:00:00]} Nf6 {[%emt 0:00:00]} 2. c4 {[%emt 0:00:00]} e6 {[%emt 0:
00:00]} 3. Nc3 {[%emt 0:00:00]} Bb4 {[%emt 0:00:00]} 4. e3 {[%emt 0:00:00]} O-O
{[%emt 0:00:00]} 5. Bd2 {[%emt 0:00:00]} d5 {[%emt 0:00:10]} 6. Nf3 {[%emt 0:
00:00]} b6 {[%emt 0:00:03]} 7. cxd5 {[%emt 0:00:00]} exd5 {[%emt 0:00:02]} 8.
Bd3 {[%emt 0:00:00]} Re8 {[%emt 0:00:32]} 9. O-O {[%emt 0:00:02]} Bd6 {[%emt 0:
00:02]} 10. Rc1 {[%emt 0:00:02]} a6 {[%emt 0:00:39]} 11. Ne5 {[%emt 0:00:03]}
Bxe5 {[%emt 0:00:38]} 12. dxe5 {[%emt 0:00:00]} Rxe5 {[%emt 0:00:01]} 13. e4 {
[%emt 0:00:01]} Bg4 {[%emt 0:03:19]} 14. Qc2 {[%emt 0:07:03]} d4 {[%emt 0:04:
57]} 15. Nd5 {[%emt 0:00:10]} c5 {[%emt 0:00:59]} 16. Bf4 {[%emt 0:04:11]} Rh5
{[%emt 0:01:07]} 17. f3 {[%emt 0:01:13]} Be6 {[%emt 0:01:09]} 18. Nc7 {[%emt 0:
00:26]} Ra7 {[%emt 0:00:03]} 19. Nxe6 {[%emt 0:00:04]} fxe6 {[%emt 0:00:00]}
20. g4 {[%emt 0:00:13]} e5 {[%emt 0:00:11]} 21. Bg3 {[%emt 0:00:45]} Rg5 {
[%emt 0:00:09]} 22. h4 {[%emt 0:00:36]} Rg6 {[%emt 0:00:01]} 23. Bxe5 {[%emt 0:
00:19]} Nc6 {[%emt 0:00:01]} 24. Bh2 {[%emt 0:01:32]} Nb4 {[%emt 0:00:07]} 25.
Bc4+ {[%emt 0:00:03]} Kh8 {[%emt 0:00:01]} 26. Qd2 {[%emt 0:00:02]} Qe7 {
[%emt 0:00:54]} 27. Qf4 {[%emt 0:00:23]} Ra8 {[%emt 0:00:27]} 28. a3 {[%emt 0:
00:20]} Nc6 {[%emt 0:00:05]} 29. Kh1 {[%emt 0:00:25]} Rf8 {[%emt 0:00:28]} 30.
Qc7 {[%emt 0:00:36]} Qxc7 {[%emt 0:01:57]} 31. Bxc7 {[%emt 0:00:00]} Nd7 {
[%emt 0:00:01]} 32. Bxa6 {[%emt 0:00:20]} Nce5 {[%emt 0:00:24]} 33. Bb5 {
[%emt 0:00:19]} Rc8 {[%emt 0:00:23]} 34. Bxd7 {[%emt 0:00:35]} Rxc7 {[%emt 0:
00:12]} 35. Bf5 {[%emt 0:00:02]} Rh6 {[%emt 0:00:11]} 36. Kh2 {[%emt 0:00:42]}
g6 {[%emt 0:00:39]} 37. g5 {[%emt 0:00:10]} Rxh4+ {[%emt 0:00:07]} 38. Bh3 {
[%emt 0:00:11]} Rf7 {[%emt 0:00:37]} 39. Kg3 {[%emt 0:00:06]} Rhf4 {[%emt 0:00:
01]} 40. Bg2 {[%emt 0:00:05]} c4 {[%emt 0:00:18]} 41. a4 {[%emt 0:00:10]} Kg7 {
[%emt 0:00:11]} 42. Rfd1 {[%emt 0:00:07]} d3 {[%emt 0:00:17]} 43. b3 {[%emt 0:
00:15]} cxb3 {[%emt 0:00:07]} 44. Rb1 {[%emt 0:00:07]} Nxf3 {[%emt 0:00:05]}
45. Rxd3 {[%emt 0:00:15]} Nxg5 {[%emt 0:00:21]} 46. Re3 {[%emt 0:00:08]} h5 {
[%emt 0:00:14]} 47. e5 {[%emt 0:00:21]} Rg4+ {[%emt 0:00:03]} 48. Kh2 {[%emt 0:
00:04]} Rf2 {[%emt 0:00:02]} 49. Rg3 {[%emt 0:00:03]} Rxg3 {[%emt 0:00:35]} 50.
Kxg3 {[%emt 0:00:02]} Rd2 {[%emt 0:00:02]} 51. Rxb3 {[%emt 0:00:14]} h4+ {
[%emt 0:00:01]} 52. Kxh4 {[%emt 0:00:03]} Rxg2 {[%emt 0:00:01]} 53. Rxb6 {
[%emt 0:00:04]} Nf3+ {[%emt 0:00:15]} 54. Kh3 {[%emt 0:00:01]} Re2 {[%emt 0:00:
00]} 55. a5 {[%emt 0:00:02]} Nxe5 {[%emt 0:00:20]} 56. a6 {[%emt 0:00:05]} Ra2
{[%emt 0:00:02]} 57. Kg3 {[%emt 0:00:09]} Kh6 {[%emt 0:00:05]} 58. Rd6 {
[%emt 0:00:28]} Ra3+ {[%emt 0:00:13]} 59. Kh4 {[%emt 0:00:27]} Nd3 {[%emt 0:00:
25]} 60. a7 {[%emt 0:00:05]} Nf2 {[%emt 0:00:13]} 61. Rxg6+ {[%emt 0:00:28]}
Kxg6 {[%emt 0:00:01]} 62. a8=Q {[%emt 0:00:02]} Rh3# {[%emt 0:00:04]} 0-1

[Event "Skilling Open CCT 2021"]
[Site "Online"]
[Date "2020.11.19"]
[Round "15.5"]
[White "Firouzja, Alireza"]
[Black "Le, Quang Liem"]
[Result "0-1"]
[ECO "A11"]
[WhiteElo "2703"]
[BlackElo "2744"]
[Annotator "ChessBase"]
[PlyCount "160"]
[EventDate "2020.11.20"]
[EventType "tourn"]
[EventCountry "NET"]
[Tiebreak "Koya+Number of black wins+Number of wins"]
[SourceTitle "playchess.com"]
[Source "ChessBase"]
[SourceQuality "1"]
[TimeControl "900+10"]

1. Nf3 {[%emt 0:00:00]} Nf6 {[%emt 0:00:00]} 2. g3 {[%emt 0:00:00]} d5 {
[%emt 0:00:00]} 3. Bg2 {[%emt 0:00:00]} Bf5 {[%emt 0:00:00]} 4. O-O {[%emt 0:
00:10]} c6 {[%emt 0:00:05]} 5. d3 {[%emt 0:00:11]} h6 {[%emt 0:00:13]} 6. c4 {
[%emt 0:00:28]} e6 {[%emt 0:01:04]} 7. cxd5 {[%emt 0:01:35]} exd5 {[%emt 0:00:
10]} 8. Qb3 {[%emt 0:01:38]} Qb6 {[%emt 0:00:22]} 9. Qc2 {[%emt 0:00:03]} Be7 {
[%emt 0:00:57]} 10. Nc3 {[%emt 0:00:04]} O-O {[%emt 0:01:04]} 11. e4 {[%emt 0:
00:09]} Bh7 {[%emt 0:00:07]} 12. Be3 {[%emt 0:00:56]} Qa6 {[%emt 0:00:05]} 13.
Rfd1 {[%emt 0:01:04]} Nbd7 {[%emt 0:00:11]} 14. exd5 {[%emt 0:00:34]} cxd5 {
[%emt 0:00:57]} 15. Qb3 {[%emt 0:00:34]} Rfd8 {[%emt 0:03:37]} 16. Qb5 {
[%emt 0:03:11]} Qxb5 {[%emt 0:00:11]} 17. Nxb5 {[%emt 0:00:02]} a6 {[%emt 0:00:
00]} 18. Nc3 {[%emt 0:00:04]} Rac8 {[%emt 0:00:23]} 19. Bh3 {[%emt 0:00:22]} g5
{[%emt 0:00:37]} 20. Nd4 {[%emt 0:00:36]} g4 {[%emt 0:01:21]} 21. Bf1 {[%emt 0:
00:08]} Kg7 {[%emt 0:00:33]} 22. Bf4 {[%emt 0:01:02]} Bc5 {[%emt 0:02:37]} 23.
Nb3 {[%emt 0:01:09]} d4 {[%emt 0:01:15]} 24. Ne2 {[%emt 0:00:05]} Bb6 {[%emt 0:
00:01]} 25. Bg2 {[%emt 0:01:08]} Nc5 {[%emt 0:00:35]} 26. Nxc5 {[%emt 0:00:25]}
Rxc5 {[%emt 0:00:00]} 27. Rac1 {[%emt 0:00:25]} Rxc1 {[%emt 0:00:34]} 28. Bxc1
{[%emt 0:00:26]} Nd5 {[%emt 0:01:32]} 29. Nf4 {[%emt 0:00:10]} Nxf4 {[%emt 0:
00:01]} 30. Bxf4 {[%emt 0:00:01]} Rd7 {[%emt 0:00:00]} 31. f3 {[%emt 0:00:51]}
h5 {[%emt 0:00:05]} 32. fxg4 {[%emt 0:00:06]} hxg4 {[%emt 0:00:00]} 33. h3 {
[%emt 0:00:08]} gxh3 {[%emt 0:00:07]} 34. Bxh3 {[%emt 0:00:02]} Re7 {[%emt 0:
00:01]} 35. Kf2 {[%emt 0:00:06]} Bc7 {[%emt 0:00:05]} 36. Bxc7 {[%emt 0:01:04]}
Rxc7 {[%emt 0:00:00]} 37. Rd2 {[%emt 0:00:00]} Kf6 {[%emt 0:00:08]} 38. Bg2 {
[%emt 0:00:04]} b6 {[%emt 0:00:13]} 39. Kf3 {[%emt 0:00:17]} Kg5 {[%emt 0:00:
23]} 40. Kf2 {[%emt 0:00:02]} Re7 {[%emt 0:00:07]} 41. Bf1 {[%emt 0:00:35]} Re6
{[%emt 0:00:16]} 42. Be2 {[%emt 0:00:09]} Rc6 {[%emt 0:00:05]} 43. Bf3 {
[%emt 0:00:16]} Rf6 {[%emt 0:00:12]} 44. Kg2 {[%emt 0:00:05]} Re6 {[%emt 0:00:
21]} 45. Kf2 {[%emt 0:00:07]} Re3 {[%emt 0:00:08]} 46. Be2 {[%emt 0:00:05]} Bf5
{[%emt 0:00:21]} 47. Kg2 {[%emt 0:00:50]} Bg4 {[%emt 0:00:11]} 48. Bf1 {
[%emt 0:00:04]} Re1 {[%emt 0:00:21]} 49. Kf2 {[%emt 0:00:27]} Rb1 {[%emt 0:00:
12]} 50. a3 {[%emt 0:00:10]} a5 {[%emt 0:00:19]} 51. Bg2 {[%emt 0:00:04]} Be6 {
[%emt 0:00:04]} 52. Bc6 {[%emt 0:00:28]} Rc1 {[%emt 0:00:05]} 53. Bf3 {[%emt 0:
00:07]} Bf5 {[%emt 0:00:28]} 54. Bd5 {[%emt 0:00:06]} f6 {[%emt 0:00:01]} 55.
Be4 {[%emt 0:00:17]} Bh3 {[%emt 0:00:01]} 56. Bf3 {[%emt 0:00:19]} f5 {[%emt 0:
00:06]} 57. Be2 {[%emt 0:00:08]} Rh1 {[%emt 0:00:13]} 58. Bf3 {[%emt 0:00:14]}
Rf1+ {[%emt 0:00:01]} 59. Ke2 {[%emt 0:00:02]} f4 {[%emt 0:00:00]} 60. gxf4+ {
[%emt 0:00:16]} Kxf4 {[%emt 0:00:00]} 61. Be4 {[%emt 0:00:09]} Kg3 {[%emt 0:00:
15]} 62. b4 {[%emt 0:00:20]} Ra1 {[%emt 0:00:15]} 63. Rb2 {[%emt 0:00:12]} a4 {
[%emt 0:00:08]} 64. b5 {[%emt 0:00:10]} Rxa3 {[%emt 0:01:11]} 65. Rb4 {[%emt 0:
00:03]} Ra2+ {[%emt 0:00:20]} 66. Kd1 {[%emt 0:00:03]} a3 {[%emt 0:00:04]} 67.
Bd5 {[%emt 0:00:35]} Bg4+ {[%emt 0:00:31]} 68. Kc1 {[%emt 0:00:06]} Ra1+ {
[%emt 0:00:01]} 69. Kc2 {[%emt 0:00:23]} a2 {[%emt 0:00:01]} 70. Ra4 {[%emt 0:
00:07]} Bd1+ {[%emt 0:00:02]} 71. Kb2 {[%emt 0:00:04]} Bxa4 {[%emt 0:00:00]}
72. Kxa1 {[%emt 0:00:00]} Bxb5 {[%emt 0:00:01]} 73. Kxa2 {[%emt 0:00:18]} Bxd3
{[%emt 0:00:04]} 74. Kb3 {[%emt 0:00:08]} Kf2 {[%emt 0:00:04]} 75. Kb4 {
[%emt 0:00:01]} Ke3 {[%emt 0:00:03]} 76. Bb3 {[%emt 0:00:03]} Be2 {[%emt 0:00:
03]} 77. Ba4 {[%emt 0:00:03]} b5 {[%emt 0:00:19]} 78. Bb3 {[%emt 0:00:04]} Bc4
{[%emt 0:00:01]} 79. Bd1 {[%emt 0:00:03]} Kd2 {[%emt 0:00:03]} 80. Bf3 {
[%emt 0:00:08]} d3 {[%emt 0:00:03]} 0-1

[Event "Skilling Open CCT 2021"]
[Site "Online"]
[Date "2020.11.19"]
[Round "15.6"]
[White "Aronian, Levon"]
[Black "Nakamura, Hikaru"]
[Result "1/2-1/2"]
[ECO "C67"]
[WhiteElo "2778"]
[BlackElo "2829"]
[Annotator "RC"]
[PlyCount "66"]
[EventDate "2020.11.20"]
[EventType "tourn"]
[EventCountry "NET"]
[Tiebreak "Koya+Number of black wins+Number of wins"]
[SourceTitle "playchess.com"]
[Source "ChessBase"]
[SourceQuality "1"]
[TimeControl "900+10"]

1. e4 {[%emt 0:00:00]} e5 {[%emt 0:00:00]} 2. Nf3 {[%emt 0:00:00]} Nc6 {
[%emt 0:00:00]} 3. Bb5 {[%emt 0:00:00]} Nf6 {[%emt 0:00:00]} 4. O-O {[%emt 0:
00:00]} Nxe4 {[%emt 0:00:00]} 5. Re1 {[%emt 0:00:00]} Nd6 {[%emt 0:00:00]} 6.
Nxe5 {[%emt 0:00:00]} Be7 {[%emt 0:00:00]} 7. Bf1 {[%emt 0:00:00]} Nxe5 {
[%emt 0:00:00]} 8. Rxe5 {[%emt 0:00:03]} O-O {[%emt 0:00:00]} 9. d4 {[%emt 0:
00:03]} Ne8 {[%emt 0:00:00]} 10. Re1 {[%emt 0:00:12]} d5 {[%emt 0:00:00]} 11.
Bf4 {[%emt 0:00:02]} Bd6 {[%emt 0:00:06]} 12. Bxd6 {[%emt 0:00:14]} Nxd6 {
[%emt 0:00:11]} 13. Bd3 {[%emt 0:00:04]} Bf5 {[%emt 0:00:05]} 14. Bxf5 {
[%emt 0:00:03]} Nxf5 {[%emt 0:00:00]} 15. c3 {[%emt 0:00:02]} Re8 {[%emt 0:00:
04]} 16. Nd2 {[%emt 0:00:17]} c6 {[%emt 0:00:02]} 17. Rxe8+ {[%emt 0:00:10]}
Qxe8 {[%emt 0:00:01]} 18. Nf3 {[%emt 0:00:02]} f6 {[%emt 0:00:04]} 19. Qc2 {
[%emt 0:00:16]} Qd7 {[%emt 0:00:11]} 20. Re1 {[%emt 0:00:03]} Nd6 {[%emt 0:00:
00]} 21. Nd2 {[%emt 0:00:26]} Re8 {[%emt 0:00:02]} 22. Rxe8+ {[%emt 0:00:01]}
Qxe8 {[%emt 0:00:02]} 23. Kf1 {[%emt 0:00:03]} Qe6 {[%emt 0:00:14]} 24. h3 {
[%emt 0:00:14]} Qf5 {[%emt 0:00:01]} 25. Qxf5 {[%emt 0:00:02]} Nxf5 {[%emt 0:
00:00]} 26. Ke2 {[%emt 0:00:05]} Nd6 {[%emt 0:00:01]} 27. Nb3 {[%emt 0:00:29]}
b6 {[%emt 0:00:15]} 28. Nc1 {[%emt 0:00:02]} Kf7 {[%emt 0:00:01]} 29. Nd3 {
[%emt 0:00:02]} Ke7 {[%emt 0:00:01]} 30. Nf4 {[%emt 0:00:21]} Nc4 {[%emt 0:00:
02]} 31. Nd3 {[%emt 0:00:04]} Nd6 {[%emt 0:00:01]} 32. Nf4 {[%emt 0:00:01]} Nc4
{[%emt 0:00:01]} 33. Nd3 {[%emt 0:00:01]} Nd6 {[%emt 0:00:01]} 1/2-1/2